bitfinex/quotes_SOLUSD_20250306
["timestamp","ask_amount","ask_price","bid_price","bid_amount"]
[1741297440006,0.0001,143.99,143.98,139.95862468]
[1741297440313,0.0001,143.99,143.98,159.81971579]
[1741297441218,0.0001,143.99,143.98,159.79971579]
[1741297441716,0.0001,143.99,143.98,471.79971579]
[1741297443713,0.0001,143.99,143.98,450.36262468]
[1741297443906,0.0001,143.99,143.98,470.22371579]
[1741297444510,0.0001,143.99,143.98,472.22371579]
[1741297447105,0.0001,143.99,143.98,470.22371579]
[1741297447416,0.0001,143.99,143.98,450.36262468]
[1741297447712,0.0001,143.99,143.98,472.22371579]
[1741297448113,0.0001,143.99,143.98,470.22371579]
[1741297448629,0.0001,143.99,143.98,443.94262468]
[1741297448827,0.0001,143.99,143.98,450.36262468]
[1741297451929,0.0001,143.99,143.98,443.94262468]
[1741297452132,0.0001,143.99,143.98,450.36262468]
[1741297453224,0.0001,143.99,143.98,443.94262468]
[1741297453423,0.0001,143.99,143.98,450.07830154]
[1741297453830,0.0001,143.99,143.98,450.36262468]
[1741297454208,0.0001,143.99,143.98,411.42865268]
[1741297454408,0.0001,143.99,143.98,404.48325268]
[1741297454927,0.0001,143.99,143.98,430.36262468]
[1741297457134,0.0001,143.99,143.98,404.34109111]
[1741297457329,0.0001,143.99,143.98,411.28649111]
[1741297457507,0.0001,143.99,143.98,411.42865268]
[1741297458332,0.0001,143.99,143.98,409.32865268]
[1741297458519,0.0001,143.99,143.98,402.38325268]
[1741297459619,0.0001,143.99,143.98,382.52216157]
[1741297462739,0.0001,143.99,143.98,376.10216157]
[1741297463042,0.0001,143.99,143.98,382.52216157]
[1741297463743,1.6604,143.99,143.98,375.96]
[1741297463943,7.8972,143.99,143.98,375.96]
[1741297464145,7.8972,143.99,143.98,312.0]
[1741297464441,13.4531,143.99,143.98,312.0]
[1741297465222,7.8972,143.99,143.98,312.0]
[1741297466729,7.8972,143.99,143.97,0.17216157]
[1741297466926,0.0001,143.99,143.97,12.83975434]
[1741297467144,0.0001,143.99,143.98,12.66759277]
[1741297467642,0.0001,143.99,143.98,12.80975434]
[1741297468019,0.0001,143.99,143.98,0.14216157]
[1741297469032,0.0001,143.99,143.98,6.42]
[1741297469769,0.0001,143.99,143.98,318.56216157]
[1741297470248,0.0001,143.99,143.98,325.50756157]
[1741297471134,0.0001,143.99,143.98,13.50756157]
[1741297471323,0.0001,143.99,143.98,26.17515434]
[1741297471649,0.0001,143.99,143.98,13.50756157]
[1741297473063,0.0001,143.99,143.98,6.56216157]
[1741297474253,0.0001,143.99,143.98,325.50756157]
[1741297474782,0.0001,143.99,143.98,318.56216157]
[1741297475126,0.0001,143.99,143.98,318.42]
[1741297475951,0.0001,143.99,143.98,13.50756157]
[1741297476747,0.0001,143.99,143.98,6.56216157]
[1741297478952,0.0001,143.99,143.98,318.56216157]
[1741297483155,0.0001,143.99,143.98,325.50756157]
[1741297484563,0.0001,143.99,143.98,318.56216157]
[1741297485269,12.66769277,143.99,143.97,0.03]
[1741297485443,12.66759277,143.98,143.97,0.03]
[1741297485838,12.66769277,143.99,143.97,0.03]
[1741297486278,0.0001,143.99,143.97,0.03]
[1741297488180,0.0001,143.99,143.97,312.03]
[1741297489176,0.0001,143.99,143.98,0.14216157]
[1741297489880,12.66769277,143.99,143.97,0.03]
[1741297490045,0.0001,143.99,143.97,0.03]
[1741297490245,0.0001,143.99,143.97,0.17216157]
[1741297490938,0.0001,143.99,143.97,7.11786157]
[1741297492369,0.0001,143.99,143.98,312.0]
[1741297496585,12.66769277,143.99,143.98,312.0]
[1741297496764,12.66769277,143.99,143.97,0.03]
[1741297496962,0.0001,143.99,143.97,0.03]
[1741297497488,0.0001,143.99,143.98,0.14216157]
[1741297498866,0.0001,143.99,143.98,7.08756157]
[1741297499488,0.0001,143.99,143.98,0.14216157]
[1741297499664,0.0001,143.99,143.98,312.14216157]
[1741297499869,0.0001,143.99,143.98,312.0]
[1741297500495,0.0001,143.99,143.98,312.14216157]
[1741297501504,0.0001,143.99,143.98,319.08756157]
[1741297501707,0.0001,143.99,143.98,83.71515434]
[1741297501907,0.0001,143.99,143.98,104.74912634]
[1741297504584,0.0001,143.99,143.98,416.74912634]
[1741297505611,0.0001,143.99,143.98,385.14756157]
[1741297505819,0.0001,143.99,143.98,375.96]
[1741297506121,0.0001,143.99,143.98,376.10216157]
[1741297507215,0.0001,143.99,143.98,383.04756157]
[1741297508913,0.0001,143.99,143.98,375.96]
[1741297509215,0.0001,143.99,143.98,376.10216157]
[1741297510010,0.0001,143.99,143.98,312.0]
[1741297510197,0.0001,143.99,143.97,0.03]
[1741297510402,0.0001,143.99,143.97,0.17216157]
[1741297510798,12.66769277,143.99,143.97,0.17216157]
[1741297511426,12.66759277,143.98,143.97,0.03]
[1741297512179,19.77669277,143.98,143.97,0.03]
[1741297512510,40.48521591,143.98,143.9,63.96]
[1741297512686,12.66759277,143.92,143.9,0.14216157]
[1741297513107,12.66759277,143.92,143.9,312.14216157]
[1741297513313,12.66759277,143.93,143.9,312.14216157]
[1741297513523,12.66759277,143.94,143.9,312.14216157]
[1741297513884,12.66759277,143.95,143.9,324.80975434]
[1741297514107,12.66759277,143.96,143.91,6.9487]
[1741297514281,12.66759277,143.96,143.91,19.61629277]
[1741297514481,12.66759277,143.97,143.92,0.14216157]
[1741297514700,12.66759277,143.97,143.92,12.80975434]
[1741297514906,20.75379277,143.98,143.97,0.03]
[1741297515692,26.31009277,143.98,143.97,0.03]
[1741297516712,44.87120502,143.98,143.97,0.03]
[1741297517091,26.31009277,143.98,143.97,0.03]
[1741297518386,88.23476047,143.98,143.9,63.96]
[1741297518591,12.66759277,143.91,143.9,6.42]
[1741297519006,12.66759277,143.91,143.9,6.56216157]
[1741297519215,12.66759277,143.92,143.9,0.14216157]
[1741297519710,61.64034456,143.97,143.9,0.14216157]
[1741297520011,12.66759277,143.93,143.9,7.09136157]
[1741297520312,12.66759277,143.93,143.91,0.14216157]
[1741297520610,12.66759277,143.94,143.91,0.14216157]
[1741297520805,67.19714456,143.97,143.91,0.14216157]
[1741297520997,12.66759277,143.95,143.91,64.10216157]
[1741297521408,12.66759277,143.95,143.93,312.0]
[1741297523714,12.66759277,143.94,143.91,63.96]
[1741297523912,12.66759277,143.92,143.89,6.42]
[1741297524106,12.66759277,143.92,143.9,0.14216157]
[1741297524407,12.66759277,143.93,143.9,0.14216157]
[1741297525019,12.66759277,143.94,143.9,0.14216157]
[1741297525317,12.66759277,143.94,143.92,0.14216157]
[1741297526422,12.66759277,143.93,143.9,7.09116157]
[1741297526923,12.66759277,143.93,143.92,312.14216157]
[1741297527623,12.66759277,143.93,143.92,312.0]
[1741297527919,12.66759277,143.93,143.89,6.42]
[1741297528216,5.5571,143.96,143.88,70.38]
[1741297528217,12.66759277,143.9,143.88,70.38]
[1741297528419,12.66759277,143.91,143.89,0.14216157]
[1741297528919,12.66759277,143.9,143.88,63.96]
[1741297529118,12.66759277,143.89,143.88,63.96]
[1741297529319,12.66759277,143.89,143.84,63.99]
[1741297529629,12.66759277,143.88,143.86,0.14216157]
[1741297529998,12.66759277,143.87,143.85,6.42]
[1741297530221,12.66759277,143.87,143.84,0.03]
[1741297530804,12.66759277,143.87,143.84,0.17216157]
[1741297531006,12.66759277,143.87,143.86,312.0]
[1741297531517,18.22809277,143.87,143.86,312.0]
[1741297531820,18.22809277,143.87,143.84,0.03]
[1741297532004,12.66759277,143.85,143.84,0.03]
[1741297532412,18.22889277,143.85,143.84,0.03]
[1741297533438,19.88509277,143.85,143.84,0.03]
[1741297533925,6.5829,143.86,143.84,0.03]
[1741297534144,12.66759277,143.85,143.84,0.03]
[1741297534740,19.84004114,143.85,143.84,0.03]
[1741297534907,61.64034456,143.87,143.84,0.17216157]
[1741297534908,81.4803857,143.87,143.84,0.17216157]
[1741297535525,19.84004114,143.86,143.84,0.03]
[1741297535909,19.84004114,143.88,143.84,0.03]
[1741297536109,19.84004114,143.88,143.85,0.14216157]
[1741297536505,19.84004114,143.9,143.86,6.9512]
[1741297536729,19.84004114,143.91,143.86,70.9112]
[1741297537026,19.84004114,143.89,143.86,63.96]
[1741297537327,19.84004114,143.88,143.86,63.96]
[1741297537510,19.84004114,143.88,143.85,7.09356157]
[1741297537709,19.84004114,143.9,143.85,26.93360271]
[1741297538128,19.84004114,143.9,143.89,312.0]
[1741297539121,19.84004114,143.91,143.89,312.0]
[1741297541599,1.6073,143.92,143.89,312.0]
[1741297541600,19.84004114,143.93,143.9,0.14216157]
[1741297541802,19.84004114,143.94,143.9,0.14216157]
[1741297542027,19.84004114,143.95,143.9,0.14216157]
[1741297542340,19.84004114,143.94,143.9,64.10216157]
[1741297543013,19.84004114,143.94,143.9,71.05096157]
[1741297543507,19.84004114,143.95,143.9,71.05096157]
[1741297544109,7.0745,143.96,143.9,71.05096157]
[1741297544310,19.84004114,143.95,143.9,71.05096157]
[1741297544626,19.84004114,143.95,143.9,90.89100271]
[1741297544843,19.84004114,143.95,143.92,312.0]
[1741297545124,25.39754114,143.95,143.92,312.0]
[1741297546529,19.84004114,143.95,143.92,312.0]
[1741297548013,0.033,143.97,143.95,0.14216157]
[1741297548201,0.033,143.97,143.95,19.98220271]
[1741297548407,0.033,143.97,143.96,19.84004114]
[1741297549118,0.033,143.97,143.96,83.94220271]
[1741297550628,0.033,143.97,143.96,64.10216157]
[1741297551003,0.033,143.97,143.96,376.10216157]
[1741297551729,0.033,143.97,143.96,395.94220271]
[1741297552112,0.033,143.97,143.96,376.10216157]
[1741297553333,0.033,143.97,143.96,312.14216157]
[1741297554510,19.87304114,143.97,143.94,70.38]
[1741297554711,0.033,143.97,143.94,70.38]
[1741297555638,19.87304114,143.97,143.94,63.96]
[1741297555843,19.84004114,143.96,143.93,6.56216157]
[1741297556934,19.87304114,143.97,143.94,0.14216157]
[1741297557123,0.033,143.97,143.94,0.14216157]
[1741297557640,0.033,143.97,143.94,312.14216157]
[1741297558609,0.033,143.97,143.94,319.08946157]
[1741297558812,0.033,143.97,143.94,26.92950271]
[1741297559534,0.033,143.97,143.94,90.88950271]
[1741297560212,0.033,143.97,143.94,64.10216157]
[1741297561111,19.87304114,143.97,143.94,64.10216157]
[1741297561718,19.87304114,143.97,143.95,312.0]
[1741297563642,25.42974114,143.97,143.95,312.0]
[1741297565138,0.033,143.97,143.96,0.14216157]
[1741297565442,0.033,143.97,143.95,312.0]
[1741297566017,0.033,143.97,143.95,318.9467]
[1741297566346,0.033,143.97,143.95,312.0]
[1741297566510,0.033,143.97,143.95,318.9467]
[1741297566844,0.033,143.97,143.95,6.9467]
[1741297567028,0.033,143.97,143.94,83.94220271]
[1741297567029,0.033,143.97,143.94,63.96]
[1741297567233,19.87304114,143.97,143.95,0.14216157]
[1741297567620,19.87304114,143.97,143.94,70.38]
[1741297569249,0.033,143.97,143.95,0.14216157]
[1741297569849,5.5897,143.97,143.95,312.14216157]
[1741297570923,25.42974114,143.97,143.95,312.0]
[1741297571661,5.5897,143.97,143.95,312.0]
[1741297574642,0.033,143.97,143.95,312.0]
[1741297574822,12.67693708,143.96,143.92,6.42]
[1741297575019,12.67693708,143.95,143.92,6.42]
[1741297575238,12.67693708,143.95,143.94,0.03]
[1741297575848,0.033,143.97,143.94,0.03]
[1741297576755,0.033,143.97,143.94,0.17216157]
[1741297577069,12.67693708,143.96,143.94,0.03]
[1741297577362,0.033,143.97,143.94,0.03]
[1741297577363,12.67693708,143.95,143.94,0.03]
[1741297577848,12.67693708,143.95,143.94,312.03]
[1741297578166,12.70993708,143.97,143.94,312.03]
[1741297579061,12.67693708,143.96,143.94,312.03]
[1741297579447,12.67693708,143.95,143.94,312.03]
[1741297579642,12.67693708,143.96,143.94,312.03]
[1741297580465,12.70993708,143.97,143.94,312.03]
[1741297580634,12.67693708,143.96,143.94,312.03]
[1741297581235,18.26663708,143.97,143.94,312.03]
[1741297583167,12.67693708,143.96,143.94,312.03]
[1741297583370,12.67693708,143.95,143.94,0.03]
[1741297584376,31.61090908,143.95,143.91,0.03]
[1741297584673,12.67693708,143.92,143.91,0.03]
[1741297585362,18.23553708,143.92,143.91,0.03]
[1741297586245,12.67693708,143.93,143.91,0.03]
[1741297586642,18.23463708,143.95,143.91,0.03]
[1741297586857,12.67693708,143.95,143.91,0.17216157]
[1741297587072,12.70993708,143.97,143.93,0.14216157]
[1741297587548,12.67693708,143.96,143.93,0.14216157]
[1741297588247,12.67693708,143.96,143.94,0.03]
[1741297589179,12.67693708,143.95,143.94,0.03]
[1741297589966,18.23433708,143.95,143.94,312.03]
[1741297590178,18.23433708,143.95,143.94,0.03]
[1741297592658,19.82059007,143.95,143.94,0.03]
[1741297592853,25.37799007,143.95,143.94,0.03]
[1741297593966,19.82059007,143.95,143.94,0.03]
[1741297595466,25.37799007,143.95,143.94,0.03]
[1741297595666,19.82059007,143.95,143.94,0.03]
[1741297595875,25.37799007,143.95,143.94,0.03]
[1741297596256,19.82059007,143.95,143.94,0.03]
[1741297596652,25.37799007,143.95,143.94,0.03]
[1741297596881,25.37799007,143.95,143.94,312.03]
[1741297598484,25.37799007,143.95,143.94,0.03]
[1741297600368,25.41099007,143.95,143.94,0.03]
[1741297602479,44.34496207,143.95,143.94,0.03]
[1741297602684,44.34496207,143.95,143.94,0.0001]
[1741297602872,18.933972,143.94,143.91,0.03]
[1741297603068,39.64118014,143.92,143.91,0.03]
[1741297603258,19.82059007,143.92,143.91,0.03]
[1741297604483,25.37919007,143.92,143.91,0.03]
[1741297605079,64.13375214,143.92,143.91,0.03]
[1741297605278,59.09638014,143.92,143.86,0.03]
[1741297605471,59.09638014,143.92,143.86,312.03]
[1741297605472,19.82059007,143.87,143.86,312.03]
[1741297605675,19.82059007,143.87,143.86,0.03]
[1741297606070,38.75456207,143.87,143.86,0.03]
[1741297606267,58.57515214,143.87,143.86,0.0001]
[1741297606668,64.13565214,143.87,143.86,0.0001]
[1741297607083,49.91950539,143.87,143.86,0.0001]
[1741297608287,25.38109007,143.87,143.86,0.0001]
[1741297609778,44.31506207,143.87,143.86,0.0001]
[1741297610469,64.13565214,143.87,143.86,0.0001]
[1741297612580,64.16865214,143.87,143.86,0.0001]
[1741297614684,44.34806207,143.87,143.86,0.0001]
[1741297615691,19.85359007,143.87,143.86,0.0001]
[1741297615994,0.033,143.87,143.86,0.0001]
[1741297616896,19.85359007,143.87,143.86,0.0001]
[1741297620406,25.41409007,143.87,143.86,0.0001]
[1741297620607,19.85359007,143.87,143.86,0.0001]
[1741297620789,0.033,143.87,143.86,0.0001]
[1741297621103,19.85359007,143.87,143.86,0.0001]
[1741297621503,25.41409007,143.87,143.86,0.0001]
[1741297623498,19.85359007,143.87,143.86,0.0001]
[1741297623706,0.033,143.87,143.86,0.0001]
[1741297627306,0.033,143.87,143.86,6.4201]
[1741297627483,0.033,143.87,143.86,27.94245164]
[1741297627809,0.033,143.87,143.86,98.85365164]
[1741297628684,0.033,143.87,143.86,72.08186157]
[1741297628884,19.85359007,143.87,143.86,6.4201]
[1741297630021,25.41409007,143.87,143.86,0.0001]
[1741297630187,135.63860328,143.87,143.86,0.0001]
[1741297630397,18.933972,143.86,143.84,0.03]
[1741297630596,121.64118014,143.85,143.84,0.03]
[1741297631685,127.20248014,143.85,143.84,0.03]
[1741297632090,64.13645214,143.85,143.83,0.03]
[1741297632311,101.82059007,143.84,143.83,0.03]
[1741297633013,18.933972,143.83,143.8,0.03]
[1741297633230,38.75456207,143.81,143.8,0.03]
[1741297633895,44.31736207,143.81,143.8,0.03]
[1741297635213,64.13795214,143.81,143.8,0.0001]
[1741297635394,100.933972,143.8,143.79,0.0001]
[1741297635600,65.10155214,143.8,143.79,0.0001]
[1741297637413,70.66475214,143.8,143.79,0.0001]
[1741297637904,18.933972,143.79,143.77,0.0001]
[1741297638092,58.57515214,143.78,143.77,0.0001]
[1741297639228,64.13915214,143.78,143.77,0.0001]
[1741297640015,63.854829,143.78,143.77,0.0001]
[1741297640214,44.03423893,143.78,143.77,0.0001]
[1741297640416,25.38459007,143.78,143.77,0.0001]
[1741297640711,19.82059007,143.78,143.77,0.0001]
[1741297641220,101.82059007,143.78,143.77,0.0001]
[1741297641916,107.38459007,143.78,143.77,0.0001]
[1741297642115,146.13915214,143.78,143.77,0.0001]
[1741297643017,151.78759295,143.78,143.77,0.0001]
[1741297643614,69.78759295,143.78,143.77,0.0001]
[1741297644124,76.20759295,143.78,143.77,0.0001]
[1741297644319,18.933972,143.77,143.71,0.03]
[1741297644620,19.82059007,143.72,143.71,0.03]
[1741297650025,25.38689007,143.72,143.71,0.03]
[1741297651123,19.82059007,143.73,143.71,0.03]
[1741297651334,82.0,143.76,143.71,0.03]
[1741297651520,87.5647,143.77,143.71,0.03]
[1741297651826,19.82059007,143.75,143.71,6.45]
[1741297652232,19.82059007,143.74,143.71,6.45]
[1741297653006,19.82059007,143.74,143.71,318.45]
[1741297654106,19.82059007,143.74,143.71,6.45]
[1741297654831,25.38619007,143.74,143.71,6.45]
[1741297655237,19.82059007,143.72,143.71,0.03]
[1741297656226,25.38689007,143.72,143.71,0.03]
[1741297657330,82.0,143.78,143.72,1.79846157]
[1741297657538,19.82059007,143.77,143.72,1.79846157]
[1741297658411,101.82059007,143.78,143.72,28.57695164]
[1741297660530,101.85359007,143.78,143.73,312.0]
[1741297660725,0.033,143.78,143.74,19.96275164]
[1741297660930,0.033,143.78,143.77,0.14216157]
[1741297661127,0.033,143.78,143.77,91.87565164]
[1741297662214,0.033,143.78,143.77,8.09506157]
[1741297662448,0.033,143.78,143.77,15.05056157]
[1741297662615,0.033,143.78,143.77,34.87115164]
[1741297663922,0.033,143.78,143.77,346.87115164]
[1741297664432,0.033,143.78,143.77,320.09506157]
[1741297666861,0.033,143.78,143.77,346.87115164]
[1741297668825,0.033,143.78,143.77,410.83115164]
[1741297670650,0.033,143.78,143.77,429.76512364]
[1741297672257,0.033,143.78,143.77,431.86512364]
[1741297673154,0.033,143.78,143.77,431.89512364]
[1741297674659,0.033,143.8,143.79,20.0]
[1741297674859,0.033,143.8,143.79,60.35656596]
[1741297675638,0.033,143.8,143.79,67.31106596]
[1741297677949,0.033,143.8,143.79,379.31106596]
[1741297678161,0.033,143.8,143.79,443.91122364]
[1741297680445,0.033,143.87,143.79,441.29762364]
[1741297680652,0.033,143.87,143.83,19.96275164]
[1741297680854,25.41419007,143.87,143.84,6.4]
[1741297681422,19.85359007,143.87,143.84,6.4]
[1741297681627,0.033,143.87,143.85,0.14216157]
[1741297681827,0.033,143.87,143.86,7.09336157]
[1741297682126,0.033,143.87,143.86,0.14216157]
[1741297682341,0.033,143.87,143.84,90.18059007]
[1741297682547,0.033,143.87,143.85,0.14216157]
[1741297683665,0.033,143.87,143.86,331.96275164]
[1741297683863,0.033,143.87,143.86,395.92275164]
[1741297684167,0.033,143.87,143.86,83.92275164]
[1741297684341,0.033,143.87,143.86,63.96]
[1741297685057,19.85359007,143.87,143.84,6.4]
[1741297685350,19.82059007,143.86,143.84,6.4]
[1741297686040,25.38189007,143.86,143.84,6.4]
[1741297686729,0.033,143.87,143.85,0.14216157]
[1741297687141,0.033,143.87,143.85,312.14216157]
[1741297687339,0.033,143.87,143.85,312.0]
[1741297687340,25.41419007,143.87,143.85,312.0]
[1741297687545,19.82059007,143.86,143.84,6.4]
[1741297688056,25.38179007,143.86,143.84,6.4]
[1741297688732,19.82059007,143.85,143.84,6.4]
[1741297688937,19.82059007,143.85,143.81,0.14216157]
[1741297689157,19.82059007,143.85,143.8,70.36]
[1741297689460,19.82059007,143.85,143.79,34.73559007]
[1741297689753,19.82059007,143.85,143.8,0.14216157]
[1741297689941,19.82059007,143.84,143.8,0.14216157]
[1741297690135,19.82059007,143.85,143.8,7.09616157]
[1741297690447,19.82059007,143.85,143.8,26.91675164]
[1741297690655,19.82059007,143.85,143.82,0.14216157]
[1741297691255,19.82059007,143.85,143.8,0.14216157]
[1741297691459,19.82059007,143.85,143.8,7.09606157]
[1741297691665,25.38179007,143.86,143.8,26.91665164]
[1741297691957,19.82059007,143.85,143.8,7.09606157]
[1741297692762,25.38209007,143.85,143.8,7.09606157]
[1741297692939,25.38209007,143.85,143.8,71.05606157]
[1741297693442,25.38209007,143.85,143.8,77.45616157]
[1741297694154,25.38159007,143.86,143.82,312.0]
[1741297694855,19.82059007,143.85,143.82,312.0]
[1741297695056,19.82059007,143.84,143.82,312.0]
[1741297696965,25.38189007,143.85,143.82,312.0]
[1741297697150,19.82059007,143.84,143.82,312.0]
[1741297697662,25.38189007,143.85,143.82,312.0]
[1741297698351,19.82059007,143.84,143.82,312.0]
[1741297698549,19.82059007,143.83,143.8,0.03]
[1741297698742,19.82059007,143.81,143.8,0.03]
[1741297699058,25.38339007,143.81,143.8,0.03]
[1741297699440,19.82059007,143.81,143.8,0.03]
[1741297699648,25.38319007,143.82,143.8,0.03]
[1741297700048,21.43279007,143.81,143.8,0.03]
[1741297700949,26.99559007,143.81,143.8,0.03]
[1741297702238,45.64523893,143.81,143.8,0.03]
[1741297702439,51.99346207,143.81,143.8,0.03]
[1741297707845,55.43859234,143.81,143.8,0.03]
[1741297708846,18.64964886,143.8,143.77,0.03]
[1741297709046,19.82059007,143.78,143.77,0.03]
[1741297710967,25.38459007,143.78,143.77,0.03]
[1741297711263,44.03423893,143.78,143.77,0.03]
[1741297712155,64.13915214,143.78,143.77,0.03]
[1741297712452,45.20518014,143.78,143.77,0.03]
[1741297712657,25.38459007,143.78,143.77,0.03]
[1741297715053,64.13915214,143.78,143.77,0.03]
[1741297716476,44.31856207,143.78,143.77,0.03]
[1741297716851,25.38459007,143.78,143.77,0.03]
[1741297717168,64.13915214,143.78,143.77,0.03]
[1741297717749,44.31856207,143.78,143.77,0.03]
[1741297718247,44.03423893,143.78,143.77,0.03]
[1741297722491,5.5635,143.8,143.77,0.03]
[1741297722676,5.563,143.81,143.77,0.03]
[1741297723064,0.033,143.84,143.78,0.14216157]
[1741297723265,19.82059007,143.83,143.78,0.14216157]
[1741297724174,19.82059007,143.82,143.78,0.14216157]
[1741297724676,12.70327639,143.82,143.78,0.14216157]
[1741297725071,12.70327639,143.81,143.77,63.99]
[1741297725384,12.70327639,143.82,143.78,0.14216157]
[1741297725554,12.70327639,143.82,143.78,312.14216157]
[1741297726401,12.70327639,143.82,143.79,6.9545]
[1741297726577,19.84985991,143.82,143.78,319.09706157]
[1741297726977,19.84985991,143.82,143.78,312.0]
[1741297727176,19.84985991,143.81,143.78,312.0]
[1741297727678,19.84985991,143.79,143.78,312.0]
[1741297727886,19.84985991,143.8,143.78,312.0]
[1741297728994,19.84985991,143.81,143.78,318.9549]
[1741297729197,19.84985991,143.82,143.78,318.9549]
[1741297729896,19.84985991,143.82,143.78,312.0]
[1741297730085,19.84985991,143.81,143.78,312.0]
[1741297730583,19.84985991,143.81,143.77,0.03]
[1741297730785,19.84985991,143.8,143.77,0.03]
[1741297730985,0.033,143.84,143.79,19.84985991]
[1741297731168,19.88285991,143.84,143.8,0.14216157]
[1741297731894,0.033,143.82,143.8,0.14216157]
[1741297733299,0.033,143.82,143.8,26.94592148]
[1741297733682,0.033,143.82,143.8,331.99202148]
[1741297733906,0.033,143.82,143.8,312.14216157]
[1741297734111,0.033,143.82,143.8,319.09606157]
[1741297734503,0.033,143.82,143.8,312.14216157]
[1741297737524,0.033,143.82,143.8,331.99202148]
[1741297737682,0.033,143.82,143.8,395.95202148]
[1741297737881,0.033,143.82,143.81,19.99202148]
[1741297738094,0.033,143.82,143.81,21.61932148]
[1741297738406,0.033,143.82,143.81,85.57932148]
[1741297740899,0.033,143.82,143.81,397.57932148]
[1741297742109,0.033,143.82,143.81,377.72946157]
[1741297743291,5.5935,143.87,143.82,0.14216157]
[1741297743492,5.5935,143.87,143.83,19.84985991]
[1741297744414,0.033,143.87,143.85,19.99202148]
[1741297744716,0.033,143.87,143.86,19.99202148]
[1741297745686,0.033,143.87,143.86,83.95202148]
[1741297746487,0.033,143.87,143.86,395.95202148]
[1741297749117,0.033,143.87,143.86,402.90322148]
[1741297750799,0.033,143.87,143.86,395.95202148]
[1741297751303,0.033,143.87,143.86,402.90322148]
[1741297752110,0.033,143.87,143.86,119.52649348]
[1741297752286,0.033,143.87,143.86,120.98540138]
[1741297753921,0.033,143.87,143.86,93.64132148]
[1741297754715,0.033,143.87,143.86,120.98578261]
[1741297755087,0.033,143.87,143.86,432.98578261]
[1741297755306,0.033,143.87,143.86,431.52649348]
[1741297759197,19.88285991,143.93,143.87,19.07613357]
[1741297759503,19.88285991,143.93,143.89,0.14216157]
[1741297759697,0.033,143.93,143.91,0.14216157]
[1741297759900,19.88285991,143.93,143.9,70.36]
[1741297760125,19.84985991,143.91,143.9,63.96]
[1741297760325,19.84985991,143.91,143.83,66.06]
[1741297760524,19.84985991,143.88,143.84,6.4]
[1741297760725,19.84985991,143.88,143.85,0.14216157]
[1741297761317,19.84985991,143.89,143.85,0.14216157]
[1741297761517,5.559,143.91,143.85,19.99202148]
[1741297761719,5.559,143.91,143.86,19.84985991]
[1741297761924,5.5587,143.92,143.88,0.14216157]
[1741297762234,5.5587,143.92,143.88,64.10216157]
[1741297762439,25.40855991,143.92,143.88,376.10216157]
[1741297763439,19.84985991,143.89,143.88,375.96]
[1741297763741,19.84985991,143.89,143.84,70.36]
[1741297763936,19.84985991,143.86,143.84,70.36]
[1741297764315,39.30515991,143.92,143.85,0.14216157]
[1741297764525,19.84985991,143.87,143.85,0.14216157]
[1741297765242,19.84985991,143.88,143.85,0.14216157]
[1741297766539,19.84985991,143.88,143.85,312.14216157]
[1741297766840,25.40865991,143.92,143.88,0.14216157]
[1741297767025,25.40865991,143.92,143.88,64.10216157]
[1741297768253,19.88285991,143.93,143.88,64.10216157]
[1741297768444,0.033,143.93,143.89,26.24985991]
[1741297768645,0.033,143.93,143.89,90.20985991]
[1741297769039,0.033,143.93,143.89,70.36]
[1741297769344,0.033,143.93,143.89,90.20985991]
[1741297769723,0.033,143.93,143.9,7.09136157]
[1741297770044,0.033,143.93,143.91,19.84985991]
[1741297770230,0.033,143.93,143.91,83.80985991]
[1741297771332,0.033,143.93,143.91,375.96]
[1741297771648,0.033,143.93,143.92,0.14216157]
[1741297774725,19.88285991,143.93,143.91,63.96]
[1741297775334,0.033,143.93,143.92,0.14216157]